[Event "Amsterdam Chess Open 2024"]
[Site "Amsterdam"]
[Date "2024.11.03"]
[Round "5.1"]
[White "Sharan, Rao"]
[Black "Grutter, Tim"]
[Result "1/2-1/2"]
[ECO "A48"]
[WhiteElo "2401"]
[BlackElo "2350"]
[Annotator "RC"]
[PlyCount "128"]
[EventDate "2024.10.31"]
[EventType "swiss"]
[EventCountry "NED"]
[SourceTitle "playchess.com"]
[Source "ChessBase"]
[SourceQuality "1"]
[TimeControl "5400+30"]

1. Nf3 {[%emt 0:00:03]} Nf6 {[%emt 0:00:05]} 2. b3 {[%emt 0:00:05]} g6 {[%emt 0:00:22]} 3. Bb2 {[%emt 0:00:04]} Bg7 {[%emt 0:00:03]} 4. e3 {[%emt 0:00:04]} O-O {[%emt 0:00:24]} 5. Be2 {[%emt 0:00:06]} d6 {[%emt 0:00:16]} 6. d4 {[%emt 0:00:04]} b6 {[%emt 0:00:18]} 7. O-O {[%emt 0:00:05]} Bb7 {[%emt 0:00:05]} 8. a4 {[%emt 0:02:50]} a5 {[%emt 0:05:48]} 9. Nbd2 {[%emt 0:00:06]} Nbd7 {[%emt 0:03:12]} 10. Nc4 {[%emt 0:00:44]} Ne4 {[%emt 0:03:29]} 11. Bd3 {[%emt 0:03:36]} e6 {[%emt 0:03:15]} 12. Nfd2 {[%emt 0:07:49]} Nxd2 {[%emt 0:05:21]} 13. Qxd2 {[%emt 0:00:05]} e5 {[%emt 0:02:54]} 14. Rfe1 {[%emt 0:09:58]} Re8 {[%emt 0:05:41]} 15. Bf1 {[%emt 0:01:25]} Qh4 {[%emt 0:04:26]} 16. c3 {[%emt 0:05:25]} Nf6 {[%emt 0:04:12]} 17. f3 {[%emt 0:02:16]} exd4 {[%emt 0:14:21]} 18. cxd4 {[%emt 0:01:50]} Nd5 {[%emt 0:01:35]} 19. g3 {[%emt 0:06:39]} Qh5 {[%emt 0:02:50]} 20. Bg2 {[%emt 0:12:54]} Nb4 {[%emt 0:05:45]} 21. g4 {[%emt 0:00:34]} Qh4 {[%emt 0:01:05]} 22. Rad1 {[%emt 0:11:04]} h5 {[%emt 0:03:49]} 23. gxh5 {[%emt 0:01:19]} Qxh5 {[%emt 0:00:17]} 24. e4 {[%emt 0:03:16]} d5 {[%emt 0:01:49]} 25. Ne5 {[%emt 0:01:53]} dxe4 {[%emt 0:01:27]} 26. fxe4 {[%emt 0:01:45]} Rad8 {[%emt 0:07:31]} 27. Nc4 {[%emt 0:00:49]} Bc8 {[%emt 0:01:39]} 28. d5 {[%emt 0:01:26]} Bxb2 {[%emt 0:01:31]} 29. Nxb2 {[%emt 0:02:52]} c6 {[%emt 0:02:37]} 30. Nc4 {[%emt 0:12:23]} Bg4 {[%emt 0:03:16]} 31. Rc1 {[%emt 0:00:01]} cxd5 {[%emt 0:04:12]} 32. exd5 {[%emt 0:00:10]} Bf3 {[%emt 0:02:23]} 33. d6 {[%emt 0:02:54]} Bxg2 {[%emt 0:01:23]} 34. Kxg2 {[%emt 0:06:15]} Qg4+ {[%emt 0:01:38]} 35. Kh1 {[%emt 0:01:09]} Qf3+ {[%emt 0:01:18]} 36. Qg2 {[%emt 0:00:12]} Rxe1+ {[%emt 0:00:22]} 37. Rxe1 {[%emt 0:00:01]} Qxb3 {[%emt 0:00:09]} 38. Qe4 {[%emt 0:01:04]} Nd3 {[%emt 0:03:04]} 39. Rf1 {[%emt 0:00:01]} Nc5 {[%emt 0:00:34]} 40. Qd5 {[%emt 0:02:21]} Rd7 {[%emt 0:02:05]} 41. Re1 {[%emt 0:00:06]} Qc3 {[%emt 0:00:27]} 42. Re8+ {[%emt 0:01:23]} Kg7 {[%emt 0:00:20]} 43. Re3 {[%emt 0:01:23]} Qa1+ {[%emt 0:01:42]} 44. Kg2 {[%emt 0:00:02]} Ne6 {[%emt 0:01:00]} 45. Rf3 {[%emt 0:01:22]} Qd4 {[%emt 0:02:05]} 46. Qxd4+ {[%emt 0:00:47]} Nxd4 {[%emt 0:00:04]} 47. Rd3 {[%emt 0:00:13]} Nf5 {[%emt 0:00:51]} 48. Kf3 {[%emt 0:00:33]} Kf6 {[%emt 0:00:14]} 49. Rd1 {[%emt 0:01:02]} Ke6 {[%emt 0:00:24]} 50. Re1+ {[%emt 0:00:04]} Kf6 {[%emt 0:00:04]} 51. Rb1 {[%emt 0:00:52]} Ke6 {[%emt 0:00:32]} 52. Rxb6 {[%emt 0:00:32]} Kd5 {[%emt 0:00:44]} 53. Nxa5 {[%emt 0:00:25]} Nxd6 {[%emt 0:00:44]} 54. Nb3 {[%emt 0:00:20]} Rc7 {[%emt 0:00:52]} 55. a5 {[%emt 0:00:25]} Rc3+ {[%emt 0:00:19]} 56. Kg4 {[%emt 0:00:49]} f6 {[%emt 0:00:51]} 57. a6 {[%emt 0:00:23]} Rc4+ {[%emt 0:00:04]} 58. Kf3 {[%emt 0:00:22]} Ra4 {[%emt 0:00:06]} 59. h3 {[%emt 0:00:43]} g5 {[%emt 0:00:15]} 60. Kg2 {[%emt 0:00:27]} f5 {[%emt 0:00:13]} 61. Kf3 {[%emt 0:00:08]} Ra2 {[%emt 0:01:08]} 62. Nc1 {[%emt 0:00:56]} Ra3+ {[%emt 0:00:44]} 63. Nb3 {[%emt 0:00:01]} Ra4 {[%emt 0:00:38]} 64. Kg2 {[%emt 0:00:27]} Ra2+ {[%emt 0:00:54]} 1/2-1/2

[Event "Amsterdam Chess Open 2024"]
[Site "Amsterdam"]
[Date "2024.11.03"]
[Round "5.2"]
[White "Ratsma, Midas"]
[Black "Brookes, Christopher"]
[Result "1-0"]
[ECO "B61"]
[WhiteElo "2280"]
[BlackElo "2218"]
[Annotator "RC"]
[PlyCount "79"]
[EventDate "2024.10.31"]
[EventType "swiss"]
[EventCountry "NED"]
[SourceTitle "playchess.com"]
[Source "ChessBase"]
[SourceQuality "1"]
[TimeControl "5400+30"]

1. e4 {[%emt 0:00:02]} c5 {[%emt 0:00:19]} 2. Nf3 {[%emt 0:00:06]} Nc6 {[%emt 0:00:16]} 3. d4 {[%emt 0:00:09]} cxd4 {[%emt 0:00:14]} 4. Nxd4 {[%emt 0:00:07]} Nf6 {[%emt 0:00:05]} 5. Nc3 {[%emt 0:00:06]} d6 {[%emt 0:00:07]} 6. Bg5 {[%emt 0:00:11]} Bd7 {[%emt 0:03:02]} 7. Qd2 {[%emt 0:02:43]} Rc8 {[%emt 0:00:49]} 8. O-O-O {[%emt 0:00:21]} Nxd4 {[%emt 0:00:47]} 9. Qxd4 {[%emt 0:00:05]} Qa5 {[%emt 0:00:10]} 10. f4 {[%emt 0:00:32]} Qc5 {[%emt 0:12:53]} 11. e5 {[%emt 0:07:52]} h6 {[%emt 0:23:38]} 12. Bh4 {[%emt 0:05:42]} dxe5 {[%emt 0:15:44]} 13. fxe5 {[%emt 0:01:54]} Qxd4 {[%emt 0:02:15]} 14. Rxd4 {[%emt 0:00:05]} g5 {[%emt 0:00:19]} 15. Bb5 {[%emt 0:25:35]} a6 {[%emt 0:07:53]} 16. exf6 {[%emt 0:01:21]} axb5 {[%emt 0:00:35]} 17. Rhd1 {[%emt 0:01:30]} Bc6 {[%emt 0:01:01]} 18. Bg3 {[%emt 0:01:39]} b4 {[%emt 0:14:07]} 19. Nd5 {[%emt 0:15:53]} Bxd5 {[%emt 0:00:12]} 20. Rxd5 {[%emt 0:00:06]} e6 {[%emt 0:00:03]} 21. Rd7 {[%emt 0:00:35]} Bc5 {[%emt 0:00:21]} 22. Rxb7 {[%emt 0:00:56]} O-O {[%emt 0:02:04]} 23. Rdd7 {[%emt 0:06:25]} Rfd8 {[%emt 0:00:06]} 24. Rbc7 {[%emt 0:01:38]} Be3+ {[%emt 0:01:13]} 25. Kb1 {[%emt 0:04:18]} Rxd7 {[%emt 0:00:08]} 26. Rxd7 {[%emt 0:00:17]} Rc5 {[%emt 0:00:05]} 27. Rd3 {[%emt 0:03:37]} Bf4 {[%emt 0:01:43]} 28. Bxf4 {[%emt 0:05:48]} gxf4 {[%emt 0:00:04]} 29. Rd4 {[%emt 0:00:42]} Rg5 {[%emt 0:00:23]} 30. Rxf4 {[%emt 0:00:55]} Rxg2 {[%emt 0:00:07]} 31. b3 {[%emt 0:00:58]} Rxh2 {[%emt 0:00:36]} 32. Rxb4 {[%emt 0:01:20]} Rf2 {[%emt 0:01:31]} 33. a4 {[%emt 0:00:50]} Rxf6 {[%emt 0:00:03]} 34. a5 {[%emt 0:00:30]} e5 {[%emt 0:00:14]} 35. Rb6 {[%emt 0:00:41]} Rf1+ {[%emt 0:00:05]} 36. Kb2 {[%emt 0:00:23]} e4 {[%emt 0:01:30]} 37. a6 {[%emt 0:01:00]} e3 {[%emt 0:00:04]} 38. a7 {[%emt 0:00:08]} e2 {[%emt 0:00:10]} 39. a8=Q+ {[%emt 0:00:07]} Kg7 {[%emt 0:00:13]} 40. Qg2+ {[%emt 0:00:07]} 1-0

[Event "Amsterdam Chess Open 2024"]
[Site "Amsterdam"]
[Date "2024.11.03"]
[Round "5.3"]
[White "Kumar, Prajit Sai"]
[Black "Lahaye, Rick"]
[Result "1-0"]
[ECO "B90"]
[WhiteElo "2179"]
[BlackElo "2400"]
[Annotator "TA"]
[PlyCount "73"]
[EventDate "2024.10.31"]
[EventType "swiss"]
[EventCountry "NED"]
[SourceTitle "playchess.com"]
[Source "ChessBase"]
[SourceQuality "1"]
[TimeControl "5400+30"]

{[%evp 15,73,0,34,34,20,31,33,23,78,71,79,79,135,132,137,77,83,25,21,27,23,7,43,32,114,117,125,76,81,54,67,56,45,44,72,76,124,0,78,6,6,6,451,486,478,450,451,481,440,0,116,120,347,338,633,625,1867,1849,29982,1677]} 1. e4 {[%emt 0:00:04]} c5 {[%emt 0:00:04]} 2. Nf3 {[%emt 0:00:06]} d6 {[%emt 0:00:05]} 3. d4 {[%emt 0:00:04]} cxd4 {[%emt 0:00:03]} 4. Nxd4 {[%emt 0:00:05]} Nf6 {[%emt 0:00:04]} 5. Nc3 {[%emt 0:00:08]} a6 {[%emt 0:00:04]} 6. f3 {[%emt 0:00:05]} e5 {[%emt 0:00:10]} 7. Nb3 {[%emt 0:00:05]} Be6 {[%emt 0:00:08]} 8. Be3 {[%emt 0:00:05]} h5 {[%emt 0:00:19]} 9. Nd5 {[%emt 0:00:35]} Bxd5 {[%emt 0:00:08]} 10. exd5 {[%emt 0:00:06]} Nbd7 {[%emt 0:00:05]} 11. Qd2 {[%emt 0:00:45] White is slightly better.} a5 {[%emt 0:00:50]} (11... g6 $11) 12. a4 $16 {[%emt 0:04:07]} g6 {[%emt 0:00:15]} 13. Bb5 {[%emt 0:04:06]} Be7 {[%emt 0:00:08]} (13... Bg7 $142) 14. O-O-O $1 {[%emt 0:03:13] White has more active pieces.} O-O {[%emt 0:00:18]} 15. Rhg1 {[%emt 0:05:16]} ({White should try} 15. Kb1) 15... Nb6 {[%emt 0:00:59]} 16. g4 {[%emt 0:09:05]} (16. Nxa5 Nxa4 17. Nc4 (17. Nxb7 $2 Qc7 $19) 17... Nb6 $11) (16. Bh6 $16) 16... hxg4 $1 $11 {[%emt 0:04:20]} 17. Bxb6 {[%emt 0:09:58]} Qxb6 {[%emt 0:00:07]} 18. fxg4 {[%emt 0:01:09]} Ne4 {[%emt 0:01:12]} 19. Qg2 {[%emt 0:05:06]} Nf2 {[%emt 0:01:51]} (19... Qe3+ $1 $14 20. Kb1 Bh4) 20. Rde1 $1 $16 {[%emt 0:08:34] Black must now prevent Rgf1.} Bh4 {[%emt 0:10:57]} 21. Rgf1 {[%emt 0:02:53]} (21. Nd2 $142) 21... e4 {[%emt 0:01:28][%cal Oa8e8]} 22. Kb1 {[%emt 0:03:09]} Rae8 {[%emt 0:03:50]} 23. Bxe8 {[%emt 0:15:56]} Rxe8 {[%emt 0:00:19]} 24. Re2 {[%emt 0:01:10]} e3 {[%emt 0:00:07]} 25. Qf3 $1 {[%emt 0:01:22]} Re7 {[%emt 0:03:33]} (25... Re5 $142) 26. Qf4 {[%emt 0:08:10]} (26. Rfe1 $1 $16 {[%cal Re2e3]} Ne4 27. Rd1 (27. Qxe3 $2 Qxe3 28. Rxe3 Bxe1 $19)) 26... Re5 {[%emt 0:18:06]} (26... Re4 $11 {keeps the balance.} 27. Qf3 Re5) 27. Nc1 {[%emt 0:06:11]} ({White should play} 27. Qc4 $16) 27... Bg5 $11 {[%emt 0:02:40]} 28. Qf3 {[%emt 0:01:18]} f5 $2 {[%emt 0:05:22][%mdl 8192]} (28... Re7 $11 {and Black has nothing to worry.}) 29. gxf5 $18 {[%emt 0:01:56]} Rxf5 {[%emt 0:00:32]} 30. Qg2 {[%emt 0:00:50][%cal Oh2h4] h4! would now be deadly.} Qd4 {[%emt 0:01:08][%cal Og8f8] [#]} 31. h4 $1 {[%emt 0:03:28]} Qxh4 {[%emt 0:38:23][%cal Og8g7]} 32. Nd3 $2 {[%emt 0:00:06]} (32. Rxe3 $1 $18 Ng4 33. Re8+ Kf7 34. Qe2) 32... Qh5 {[%emt 0:03:05]} (32... Nxd3 $1 $11 33. Rxf5 gxf5 34. cxd3 Kf7) 33. Ree1 $1 $16 {[%emt 0:02:28][%cal Rd3f2]} Qf3 {[%emt 0:02:47] [#]} (33... Nxd3 $16 {was necessary.} 34. cxd3 (34. Rxf5 gxf5 35. cxd3 Kg7 $14) 34... Qh4) 34. Qh2 $1 $18 {[%emt 0:02:07]} Rf6 {[%emt 0:03:17] [#]} (34... Qxd5 35. Nxf2 Rxf2 36. Rxf2 exf2 37. Qxf2 Kg7) 35. Nxf2 $1 {[%emt 0:01:04]} e2 {[%emt 0:00:21]} 36. Rh1 {[%emt 0:01:00] White threatens Qh8+ and mate.} Kf8 {[%emt 0:00:39]} 37. Nd3 {[%emt 0:00:55] Weighted Error Value: White=0.28 (precise) /Black=0.91.  Loses game:     	---       	Black=2      Missed win:     	White=1     	---        Mistake:       	White=5     	Black=7      Inaccurate:     	White=1     	Black=2      OK:         	White=7     	Black=6      Best:        	White=1     	Black=2      Strong:       	White=6     	Black=1      Brilliant:      	White=1     	---} (37. Qh8+ $142 Ke7 38. Qc8 Qxh1 39. Rxh1 (39. Nxh1 Kf7 $18) 39... Bh4 40. Qc4 (40. Qxb7+ Ke8 $18) 40... g5 41. Qxe2+ Kf8 42. Re1) 1-0

[Event "Amsterdam Chess Open 2024"]
[Site "Amsterdam"]
[Date "2024.11.03"]
[Round "5.4"]
[White "Wunnink, Michael"]
[Black "Schippers, Maurice"]
[Result "0-1"]
[ECO "B90"]
[WhiteElo "2162"]
[BlackElo "2287"]
[Annotator "RC"]
[PlyCount "64"]
[EventDate "2024.10.31"]
[EventType "swiss"]
[EventCountry "NED"]
[SourceTitle "playchess.com"]
[Source "ChessBase"]
[SourceQuality "1"]
[TimeControl "5400+30"]

1. e4 {[%emt 0:00:04]} c5 {[%emt 0:00:22]} 2. Nf3 {[%emt 0:00:08]} d6 {[%emt 0:00:36]} 3. d4 {[%emt 0:00:20]} cxd4 {[%emt 0:00:04]} 4. Nxd4 {[%emt 0:00:08]} Nf6 {[%emt 0:00:12]} 5. Nc3 {[%emt 0:00:05]} a6 {[%emt 0:00:05]} 6. Nb3 {[%emt 0:01:40]} g6 {[%emt 0:01:26]} 7. f3 {[%emt 0:05:57]} Bg7 {[%emt 0:02:58]} 8. Be3 {[%emt 0:00:16]} Nc6 {[%emt 0:03:04]} 9. Qd2 {[%emt 0:01:14]} Be6 {[%emt 0:03:50]} 10. O-O-O {[%emt 0:02:45]} Rc8 {[%emt 0:02:15]} 11. Kb1 {[%emt 0:02:53]} Ne5 {[%emt 0:10:48]} 12. Nd5 {[%emt 0:24:22]} Bxd5 {[%emt 0:11:56]} 13. exd5 {[%emt 0:00:09]} Qc7 {[%emt 0:00:18]} 14. c4 {[%emt 0:08:29]} O-O {[%emt 0:01:33]} 15. Rc1 {[%emt 0:03:16]} Qd7 {[%emt 0:00:37]} 16. Be2 {[%emt 0:06:14]} b5 {[%emt 0:05:29]} 17. Na5 {[%emt 0:09:25]} bxc4 {[%emt 0:05:04]} 18. Nxc4 {[%emt 0:01:32]} Rb8 {[%emt 0:13:41]} 19. Nb6 {[%emt 0:06:04]} Qd8 {[%emt 0:02:01]} 20. Na4 {[%emt 0:01:39]} a5 {[%emt 0:01:12]} 21. g4 {[%emt 0:03:56]} Rb4 {[%emt 0:01:37]} 22. Nc3 {[%emt 0:00:28]} Qb8 {[%emt 0:03:08]} 23. g5 {[%emt 0:04:14]} Nfd7 {[%emt 0:09:41]} 24. a3 {[%emt 0:00:54]} Nc4 {[%emt 0:01:09]} 25. Bxc4 {[%emt 0:00:08]} Rxc4 {[%emt 0:00:03]} 26. Ne4 {[%emt 0:00:52]} Ne5 {[%emt 0:01:38]} 27. Qe2 {[%emt 0:02:59]} Rfc8 {[%emt 0:02:08]} 28. Nd2 {[%emt 0:01:27]} Rxc1+ {[%emt 0:10:12]} 29. Rxc1 {[%emt 0:00:06]} Qxb2+ {[%emt 0:01:39]} 30. Kxb2 {[%emt 0:00:04]} Nd3+ {[%emt 0:00:03]} 31. Kb1 {[%emt 0:00:23]} Rxc1+ {[%emt 0:00:19]} 32. Ka2 {[%emt 0:00:03]} Ra1+ {[%emt 0:00:18]} 0-1

[Event "Amsterdam Chess Open 2024"]
[Site "Amsterdam"]
[Date "2024.11.03"]
[Round "5.5"]
[White "Warakomska, Anna"]
[Black "Van den Doel, Erik"]
[Result "0-1"]
[ECO "D10"]
[WhiteElo "2219"]
[BlackElo "2557"]
[Annotator "TA"]
[PlyCount "164"]
[EventDate "2024.10.31"]
[EventType "swiss"]
[EventCountry "NED"]
[SourceTitle "playchess.com"]
[Source "ChessBase"]
[SourceQuality "1"]
[TimeControl "5400+30"]

{[%evp 11,164,20,18,24,18,16,19,16,12,15,21,14,27,25,18,-2,34,0,46,28,36,26,27,-2,50,43,52,45,108,77,50,33,266,52,44,51,36,48,56,41,41,0,0,0,0,0,0,0,0,0,0,0,0,0,0,-9,-8,-132,-29,-163,-153,-588,-552,-615,-617,-4133,-564,-9135,-9135,-5202,-4429,-4429,-2736,-2736,-2357,-1955,-1777,-1456,-1987,-2129,-6207,-9934,-9838,-5189,-1645,-4931,-4094,-29966,-29965,-29966,-29968,-29968,-29969,-29969,-29970,-29970,-29967,-29965,-29968,-29968,-29969,-29969,-29968,-29968,-29969,-29969,-29969,-29969,-29970,-29970,-29970,-29970,-29967,-29966,-29967,-29966,-29967,-29967,-29966,-29965,-29963,-29967,-29968,-29966,-29967,-29966,-29968,-29970,-29971,-29970,-29972,-29972,-29973,-29972,-29973,-29974,-29974,-29974,-29973,-29975,-135,-29971,-29970,-29973,-29971,-29975,-29976,-29976,-29977,-29976,-29977,-29979,-29980,-29980,-29980]} 1. d4 {[%emt 0:00:26]} d5 {[%emt 0:00:05]} 2. c4 {[%emt 0:00:07]} c6 {[%emt 0:00:35]} 3. cxd5 {[%emt 0:00:45]} cxd5 {[%emt 0:00:04]} 4. Bf4 {[%emt 0:00:05]} Nc6 {[%emt 0:00:17]} 5. e3 {[%emt 0:00:24]} Nf6 {[%emt 0:03:02]} 6. Nc3 {[%emt 0:00:06]} Bg4 {[%emt 0:00:56]} 7. Qb3 {[%emt 0:01:25]} Na5 {[%emt 0:01:12]} 8. Qa4+ {[%emt 0:00:05]} Bd7 {[%emt 0:00:04]} 9. Qc2 {[%emt 0:00:06] The position is equal.} Rc8 {[%emt 0:05:15]} 10. Bd3 {[%emt 0:02:06]} g6 {[%emt 0:10:27]} 11. Nf3 {[%emt 0:02:15]} Bg7 {[%emt 0:02:01]} 12. O-O {[%emt 0:00:39]} O-O {[%emt 0:00:03]} 13. h3 {[%emt 0:02:13] [#]} b5 $1 {[%emt 0:03:22] Strongly threatening ...b4.} 14. a3 {[%emt 0:02:07]} (14. Bxb5 $2 Bxb5 15. Rfe1 Ne4 $19) (14. Qe2 b4) 14... Nc4 {[%emt 0:03:13]} (14... Ne4 $11 {deserves consideration.}) 15. Ne5 {[%emt 0:20:02]} Be6 {[%emt 0:03:49]} 16. Qe2 {[%emt 0:08:13]} a6 {[%emt 0:05:16]} 17. Rfc1 {[%emt 0:02:36]} Nd7 {[%emt 0:04:23]} ({Better is} 17... Nh5 $11) 18. Nxd7 $14 {[%emt 0:10:16]} Qxd7 {[%emt 0:00:46]} 19. b3 {[%emt 0:01:23]} Nxa3 {[%emt 0:06:09]} 20. Rxa3 {[%emt 0:02:53]} b4 {[%emt 0:00:51][%csl LRa3,LRc3]} 21. Ra2 {[%emt 0:01:32][%cal Oe2e1] Black must now prevent Qe1!} Bf5 $2 {[%emt 0:24:23] [#]} (21... Rxc3 $14 22. Rxc3 bxc3) 22. Rac2 $1 {[%emt 0:05:02]} bxc3 {[%emt 0:01:00]} (22... Bxd3 23. Qxd3) 23. Rxc3 {[%emt 0:00:19]} Rxc3 {[%emt 0:02:33]} 24. Rxc3 {[%emt 0:00:47]} Bxd3 {[%emt 0:00:10]} 25. Qxd3 {[%emt 0:00:09]} Rc8 {[%emt 0:00:07] Against Rc7} 26. Qc2 {[%emt 0:04:20]} Rxc3 {[%emt 0:00:50]} 27. Qxc3 $11 {[%emt 0:00:05][%mdl 4096] Endgame. KQB-KQB} h6 {[%emt 0:01:44]} 28. Qa5 {[%emt 0:08:33]} g5 {[%emt 0:01:25]} 29. Bg3 {[%emt 0:02:16]} Qe6 {[%emt 0:01:31]} 30. Qc7 {[%emt 0:03:44]} f5 {[%emt 0:02:12]} 31. h4 {[%emt 0:06:57]} Kf7 {[%emt 0:00:56]} 32. hxg5 {[%emt 0:00:09]} hxg5 {[%emt 0:00:05]} 33. Kf1 {[%emt 0:02:06]} Qe4 {[%emt 0:01:13] aiming for ...Qb1+.} 34. Bd6 {[%emt 0:02:13] [#] White is on the road to losing.} (34. Kg1 $1 $11 {remains equal.}) 34... Bf6 {[%emt 0:06:58]} (34... f4 $1 $17 {[%cal Rf4e3]} 35. exf4 gxf4) 35. Qb7 {[%emt 0:00:35] [#]} (35. g3 $1 $11 {and White has nothing to worry.}) 35... f4 $1 $19 {[%emt 0:02:07]} 36. Bc5 $2 {[%emt 0:01:16]} (36. exf4 $17 Bxd4 (36... gxf4 37. Kg1 $17) 37. Bb4) 36... fxe3 {[%emt 0:02:06]} 37. fxe3 {[%emt 0:00:05]} g4 {[%emt 0:00:04]} (37... Qxe3 38. Qxd5+ e6 39. Qb7+ Kg6 40. Qxa6 $11) 38. Qxa6 {[%emt 0:04:00]} Qb1+ {[%emt 0:01:19]} (38... Qxe3 39. Qe2 Qg5 (39... Qxb3 40. Qxg4 Qd3+ 41. Kf2 $11) 40. Qc2 $11) (38... Bh4 $142 {( -> ...Qb1+)} 39. Bb4 Qxe3) 39. Ke2 {[%emt 0:02:09]} Qc2+ {[%emt 0:00:17]} (39... Qxb3 40. Qd3 Qb2+ 41. Kf1 $11) 40. Kf1 {[%emt 0:00:34]} Qd1+ {[%emt 0:01:30]} (40... Qxb3 41. Qe2 $15) 41. Kf2 {[%emt 0:00:03]} Bh4+ {[%emt 0:00:29]} (41... Qxb3 42. Qe2 $11) 42. g3 {[%emt 0:00:04]} Qc2+ {[%emt 0:02:39]} 43. Qe2 {[%emt 0:00:54] [#]} Bxg3+ $1 {[%emt 0:00:04][%mdl 512]} 44. Kf1 {[%emt 0:00:04]} Qe4 {[%emt 0:00:44]} (44... Qxb3 45. Kg2 Bc7 46. Qxg4 Qc2+ 47. Kf1 $11) 45. Kg1 {[%emt 0:01:20] Wards off Qh1+} Bf4 {[%emt 0:00:25]} 46. Qf2 {[%emt 0:00:41]} Qxe3 {[%emt 0:00:23]} 47. Qxe3 {[%emt 0:00:02]} Bxe3+ {[%emt 0:00:04] KB-KB} 48. Kg2 {[%emt 0:00:03]} Bf4 {[%emt 0:01:08]} 49. b4 {[%emt 0:00:17]} Ke8 {[%emt 0:00:19]} 50. b5 {[%emt 0:00:50]} Kd7 {[%emt 0:00:04]} 51. Bb4 {[%emt 0:00:32]} Bd6 {[%emt 0:00:56]} 52. Ba5 {[%emt 0:01:29]} Kc8 {[%emt 0:00:25]} 53. Kf2 {[%emt 0:02:45]} Kb7 {[%emt 0:00:05]} 54. Bd8 {[%emt 0:01:05]} e6 {[%emt 0:00:04]} 55. b6 {[%emt 0:00:26]} Bf4 {[%emt 0:03:00]} 56. Ke2 {[%emt 0:00:32]} Kc6 {[%emt 0:01:22]} 57. Kf2 {[%emt 0:00:11]} Bh6 {[%emt 0:01:07]} 58. Bc7 {[%emt 0:00:39]} Bg7 {[%emt 0:00:31]} 59. Ke3 {[%emt 0:00:04]} Bf6 {[%emt 0:00:20]} 60. Kd3 {[%emt 0:00:15]} Be7 {[%emt 0:01:00]} 61. Ke3 {[%emt 0:00:55]} Bd6 {[%emt 0:00:35]} 62. Bd8 {[%emt 0:00:30]} Bh2 {[%emt 0:00:21]} 63. Kf2 {[%emt 0:00:36]} Bf4 {[%emt 0:00:35]} 64. Ke2 {[%emt 0:00:22]} Kd7 {[%emt 0:00:35]} 65. Bf6 {[%emt 0:00:21]} Bd6 {[%emt 0:00:24]} 66. Kf2 {[%emt 0:00:33]} Kc6 {[%emt 0:00:17]} 67. Bd8 {[%emt 0:00:04]} Bb4 {[%emt 0:00:15]} 68. Kg3 {[%emt 0:00:21]} Bc3 {[%emt 0:00:30]} 69. Bf6 {[%emt 0:00:30]} Kxb6 {[%emt 0:00:04]} 70. Kxg4 {[%emt 0:00:02]} Kb5 {[%emt 0:00:25]} 71. Kf3 {[%emt 0:00:28]} Kc4 {[%emt 0:00:16]} 72. Ke3 {[%emt 0:00:04]} Ba5 {[%emt 0:00:31]} 73. Be7 {[%emt 0:02:25]} Bb6 {[%emt 0:00:57]} 74. Bf6 {[%emt 0:00:04]} Kc3 {[%emt 0:00:02]} 75. Bg7 {[%emt 0:01:37]} Kc2 $2 {[%emt 0:00:04]} (75... Bc7 {mates} 76. Bf6 Bh2 77. Bh4 Bg1+ 78. Ke2 Bxd4 (78... Kxd4 $2 79. Bg3 $19) 79. Bg3 e5 80. Kf3 e4+ 81. Ke2 Bc5 82. Kd1 d4 83. Bh4 e3 84. Be1+ Kc4 85. Bh4 Kd3 (85... d3 {leads to mate.} 86. Bg5 e2+ 87. Ke1 Bd6 88. Be3 Be7 89. Kf2 Bh4+ 90. Kf3 e1=Q 91. Kf4 Kd5 92. Kg4 Qxe3 93. Kxh4 d2 94. Kh5 Qg1 95. Kh6 d1=Q 96. Kh7 Qh5#) 86. Ke1 Bb4+ 87. Kf1 e2+ 88. Kg2 Ke4 (88... e1=R {is a self mate.} 89. Bxe1 Bxe1 90. Kf3 Kc2 91. Kg4 d3 92. Kf5 d2 93. Kf6 d1=Q 94. Ke6 Bh4 95. Ke5 Qd7 96. Ke4 Qe6+ 97. Kf3 Qg6 98. Ke3 Qf5 99. Kd4 Bf2+ 100. Kc4 Qc5#) 89. Bg3 d3 (89... e1=B 90. Bxe1 Bxe1 91. Kf1 Bc3 92. Ke2 d3+ 93. Kd1 Kf3 94. Kc1 Ke2 95. Kb1 d2 96. Kc2 d1=Q+ 97. Kxc3 Qa4 98. Kb2 Kd3 99. Kb1 Kc3 100. Kc1 Qc2#) 90. Kh3 d2 (90... e1=B 91. Bxe1 Bxe1 92. Kg4 d2 93. Kg5 d1=Q 94. Kg6 Qd7 95. Kf6 Bd2 96. Kg6 Qe7 97. Kh5 Qg5#) 91. Kg4 e1=Q (91... d1=N 92. Bh4 Ne3+ 93. Kh5 Ng2 94. Bg3 Kf3 95. Be1 Bxe1 96. Kg5 Bd2+ 97. Kf6 e1=Q 98. Kf7 Bc3 99. Kf8 Nf4 100. Kf7 Qe6+ 101. Kf8 Ng6#) 92. Bxe1 dxe1=Q 93. Kg5 Qg3+ 94. Kf6 Qg4 95. Kf7 Qg5 96. Ke8 Qe7#) 76. Be5 $2 {[%emt 0:01:12][%mdl 8192]} (76. Kf4 $17) 76... Ba5 {[%emt 0:00:23] Black mates.} 77. Bf6 {[%emt 0:00:33]} Kc3 {[%emt 0:00:59]} 78. Bg7 {[%emt 0:00:18]} Bc7 {[%emt 0:00:30]} 79. Bf6 {[%emt 0:01:07]} Bh2 {[%emt 0:00:14]} 80. Kf2 {[%emt 0:00:36]} Kd3 {[%emt 0:00:05]} 81. Kf3 {[%emt 0:00:31]} Bg1 {[%emt 0:00:05]} 82. Bd8 {[%emt 0:00:31]} Bxd4 {[%emt 0:00:09] Weighted Error Value: White=0.67/Black=0.43.  Loses game:     	White=1     	Black=1      Missed win:     	White=1     	---        Mistake:       	White=2     	Black=4      Inaccurate:     	White=4     	Black=1      OK:         	White=5     	Black=15     Best:        	White=1     	Black=4      Strong:       	---       	Black=1} ({And not} 82... Kxd4 83. Bb6+ Kc3 84. Bxg1 $11) 0-1